fUST/lending_fUST_20240514
["ID","MTS","AMOUNT","RATE_DAILY","PERIOD"]
[326986482,1715682634106,-785.70026484,0.0008955,30]
[326986484,1715682634115,-500.0,0.00089899,120]
[326986486,1715682634124,-199.54330348,0.00089899,120]
[326986488,1715682634133,-500.0,0.00089899,120]
[326986490,1715682634142,-500.0,0.00089899,120]
[326986492,1715682634151,-408.35100923,0.00089899,120]
[326986494,1715682634160,-500.0,0.00089899,120]
[326986496,1715682634169,-188.63086759,0.00089899,120]
[326986498,1715682634178,-326.79066792,0.00089899,31]
[326986500,1715682634187,-2000.0,0.000899,120]
[326986502,1715682634197,-38183.59367712,0.000899,120]
[326986662,1715682638256,-766.89660977,0.0003255,4]
[326986663,1715682638386,-335.39996181,0.0003255,4]
[326986664,1715682638400,-257.13268637,0.0003255,4]
[326986665,1715682638410,-635.54172234,0.000899,120]
[326986691,1715682643002,-500.0022972,0.000899,120]
[326986704,1715682643243,-7267.8152741,0.000899,120]
[326986712,1715682643479,-350.00768034,0.000899,120]
[326986728,1715682646518,-313.6911583,0.00059024,2]
[326986729,1715682646528,-153.0,0.00059024,60]
[326986730,1715682646538,-153.0,0.00059024,60]
[326986731,1715682646547,-153.0,0.00059024,60]
[326986732,1715682646557,-153.0,0.00059024,60]
[326986733,1715682646568,-153.0,0.00059024,60]
[326986734,1715682646577,-1771.87263152,0.000899,120]
[326986740,1715683521692,154.81422293,9.999e-05,2]
[326986741,1715683622821,150.0,0.000189,2]
[326986742,1715683623067,150.0,0.000239,2]
[326986752,1715683820311,157.27495146,0.00020913,2]
[326986928,1715683843224,-165.098284,0.00027123,2]
[326986929,1715683843233,-165.098284,0.00035574,2]
[326986930,1715683843242,-64.17970538,0.00037036,2]
[326987015,1715683863190,10631.87202111,0.00020913,2]
[326987017,1715683885124,4868.16295712,0.00020913,2]
[326987019,1715683953216,771.35697684,0.000138,2]
[326987022,1715684260350,10000.0,0.00025014,27]
[326987023,1715684340015,990000.0,0.00025014,27]
[326987024,1715684340042,10000.0,0.00025014,27]
[326987025,1715684354216,1000000.0,0.00025014,27]
[326987026,1715684357305,1000000.0,0.00025014,27]
[326987027,1715684361354,1000001.0,0.00025014,27]
[326987028,1715684364302,1000002.0,0.00025014,27]
[326987029,1715684366757,1000003.0,0.00025014,27]
[326987030,1715684372196,1000005.0,0.00025014,27]
[326987031,1715684383342,1000006.0,0.00025014,27]
[326987032,1715684387824,1000008.0,0.00025014,27]
[326987033,1715684400563,1000009.0,0.00025014,27]
[326987034,1715684743586,2173.23280837,0.00018,2]
[326987035,1715684935082,154.82968734,0.000245,2]
[326987036,1715684969295,1896.23906673,9.999e-05,2]
[326987037,1715684970650,989966.0,0.00025014,27]
[326987038,1715684970686,10054.0,0.00025014,27]
[326987039,1715684983296,1000021.0,0.00025014,27]
[326987040,1715684985697,1000022.0,0.00025014,27]
[326987041,1715684988221,1000023.0,0.00025014,27]
[326987042,1715684991148,1000024.0,0.00025014,27]
[326987043,1715684993523,1000025.0,0.00025014,27]
[326987044,1715685002944,1000026.0,0.00025014,27]
[326987045,1715685005444,1000027.0,0.00025014,27]
[326987046,1715685008012,1000028.0,0.00025014,27]
[326987047,1715685009945,2632.55159095,0.00020913,2]
[326987048,1715685017141,1000029.0,0.00025014,27]
[326987073,1715685032798,-2854.0737971,0.00025014,7]
[326987074,1715685032808,-2497.62218038,0.00025014,10]
[326987075,1715685032822,-166.517553,0.00027123,2]
[326987076,1715685032832,-161.476922,0.00027123,2]
[326987077,1715685032842,-805.3611334,0.000275,17]
[326987078,1715685032852,-1450.37350941,0.0003,4]
[326987079,1715685032862,-304.5889617,0.00032951,2]
[326987080,1715685032871,-172.625287,0.00033289,2]
[326987081,1715685032881,-161.476922,0.0003399,2]
[326987082,1715685032890,-1255.46828563,0.00035,7]
[326987083,1715685032899,-292.471548,0.00035616,120]
[326987084,1715685032908,-1647.01590178,0.00036939,2]
[326987085,1715685032918,-154.82968734,0.00037807,4]
[326987086,1715685032927,-225.0077881,0.00037808,2]
[326987087,1715685032936,-900.96902525,0.0003812,4]
[326987088,1715685032945,-154.82968734,0.0003812,4]
[326987089,1715685032955,-307.04028319,0.00039,2]
[326987090,1715685032964,-4818.18938055,0.0004,2]
[326987091,1715685032974,-1000.0,0.0004,44]
[326987092,1715685032983,-288.96410296,0.00040026,28]
[326987093,1715685032992,-184.53230057,0.00040028,2]
[326987094,1715685033002,-184.53230054,0.00040029,2]
[326987095,1715685033011,-184.53230054,0.00040029,2]
[326987096,1715685033022,-184.53230054,0.0004003,2]
[326987097,1715685033032,-184.53230054,0.0004003,2]
[326987098,1715685033043,-4446.34,0.00040118,3]
[326987099,1715685033157,-3705.28,0.00040118,3]
[326987100,1715685033167,-200.67413104,0.00040125,31]
[326987101,1715685033177,-2037.60481609,0.00040126,2]
[326987102,1715685033187,-815.935056,0.00040126,2]
[326987103,1715685033197,-9661.01558217,0.00040126,4]
[326987104,1715685033206,-718.76666656,0.00040126,4]
[326987105,1715685033216,-1040.41618624,0.00040126,4]
[326987106,1715685033225,-912.66091216,0.00040126,4]
[326987107,1715685033235,-893.8508797,0.00040126,4]
[326987108,1715685033244,-1016.08078737,0.00040126,4]
[326987109,1715685033253,-1124.62802819,0.00040126,15]
[326987110,1715685033263,-467.5754666,0.00040126,4]
[326987111,1715685033272,-1681.2123987,0.00040126,4]
[326987112,1715685033282,-1333.9069725,0.00040126,4]
[326987113,1715685033291,-1520.60312054,0.00040126,4]
[326987114,1715685033300,-2152.4498189,0.00040126,4]
[326987115,1715685033310,-2258.47184525,0.00040126,4]
[326987116,1715685033319,-1200.23430412,0.00040126,4]
[326987117,1715685033328,-588.40960856,0.00040126,4]
[326987118,1715685033338,-2251.12195042,0.00040126,4]
[326987119,1715685033347,-504.77043248,0.00040127,31]
[326987120,1715685033357,-338.87697921,0.00040127,31]
[326987121,1715685033366,-431.92071923,0.00040127,31]
[326987188,1715685040986,-300.39549988,0.00040119,3]
[326987211,1715685044190,-68.07928077,0.00040127,31]
[326987212,1715685044200,-668.08652704,0.00040128,4]
[326987213,1715685044210,-458.16144716,0.00040128,4]
[326987214,1715685044219,-475.32221455,0.00040128,4]
[326987215,1715685044228,-155.38427888,0.00040128,4]
[326987216,1715685044237,-207.04612451,0.00040128,4]
[326987217,1715685044246,-247.29346306,0.00040128,4]
[326987218,1715685044255,-154.96630494,0.00040128,4]
[326987219,1715685044264,-155.1005922,0.00040128,4]
[326987220,1715685044273,-309.28863614,0.00040128,4]
[326987221,1715685044354,-155.08709736,0.00040128,4]
[326987222,1715685044365,-7886.43652278,0.00040128,4]
[326987223,1715685044374,-157.13308104,0.00040128,4]
[326987224,1715685044383,-305.43371295,0.00040128,4]
[326987225,1715685044392,-609.62611493,0.00040128,4]
[326987226,1715685044401,-500.0,0.00040128,2]
[326987227,1715685044411,-154.95734354,0.00040128,4]
[326987228,1715685044420,-18.19444322,0.00040128,4]
[326987245,1715685122400,1259.66571715,0.00020913,2]
[326987246,1715685122434,1533.08364345,0.00020913,2]
[326987247,1715685129302,158.39318109,0.00022914,2]
[326987248,1715685166649,3973.46857554,0.00022914,2]
[326987249,1715685178639,3973.46857554,0.00022914,2]
[326987250,1715685198634,1612.91993764,0.00022914,2]
[326987251,1715685430860,150.0,0.00022914,2]
[326987252,1715685433865,13598.66608674,0.00025,2]
[326987253,1715685438750,513.01214525,9.999e-05,2]
[326987254,1715685694353,24486.98785475,0.00020913,2]
[326987255,1715685902609,15325.6591002,0.0001991,2]
[326987256,1715686217597,154.86062544,9.999e-05,2]
[326987257,1715686229718,230.440659,0.00019906,2]
[326987279,1715686235019,172.625287,0.00019632,2]
[326987323,1715686235451,-2792.7493606,0.00020889,2]
[326987326,1715686235461,-513.01214525,0.0002089,2]
[326987327,1715686235471,-901.4482359,0.00020891,2]
[326987329,1715686235480,-544.83,0.00020904,3]
[326987331,1715686235489,-521.98277589,0.00020904,3]
[326987334,1715686235501,-291.41722411,0.00020904,3]
[326987336,1715686235511,-271.13,0.00020904,3]
[326987337,1715686235521,-813.44,0.00020904,3]
[326987340,1715686235531,-2595.37774588,0.00020911,2]
[326987341,1715686235541,-1896.23906673,0.00020912,2]
[326987343,1715686235550,-65961.01054969,0.00020913,2]
[326987345,1715686235561,-2539.08,0.00021,2]
[326987347,1715686235570,-166.666666,0.00021918,2]
[326987349,1715686235579,-5229.71545665,0.00022,4]
[326987351,1715686235589,-206.29485762,0.00022174,2]
[326987353,1715686235599,-1089.66,0.00022274,3]
[326987362,1715686235677,-1626.8,0.00022274,3]
[326987364,1715686235687,-813.4,0.00022274,3]
[326987366,1715686235697,-542.26,0.00022274,3]
[326987368,1715686235707,-166.666666,0.00022431,2]
[326987370,1715686235716,-150.0,0.000229,2]
[326987372,1715686235726,-166.666666,0.00022944,2]
[326987374,1715686235735,-166.666666,0.00023456,2]
[326987376,1715686235744,-560.35319708,0.00023687,2]
[326987377,1715686235754,-166.666666,0.00023969,2]
[326987380,1715686235764,-166.666666,0.00024482,2]
[326987381,1715686235775,-154.86062544,0.00024999,2]
[326987383,1715686235785,-213.87348428,0.00024999,2]
[326987385,1715686235794,-430.61589963,0.00024999,2]
[326987387,1715686235806,-12938.45650517,0.00025,2]
[326987389,1715686235816,-206.29485762,0.00025356,2]
[326987391,1715686235825,-560.35319708,0.00025556,2]
[326987393,1715686235836,-150.0,0.00026452,3]
[326987395,1715686235846,-160.832682,0.00027123,2]
[326987397,1715686235856,-162.328713,0.00027123,2]
[326987399,1715686235867,-560.35319708,0.00027425,2]
[326987401,1715686235877,-3000.0,0.000275,2]
[326987403,1715686235887,-4163.867563,0.0002751,2]
[326987405,1715686235898,-215.139294,0.0002751,2]
[326987407,1715686235909,-206.29485762,0.00028537,2]
[326987409,1715686235923,-560.35319708,0.00029293,2]
[326987411,1715686235932,-230.440659,0.00029859,2]
[326987413,1715686235942,-217.0,0.0003,2]
[326987415,1715686235951,-951.60048056,0.00030096,4]
[326987417,1715686235962,-560.35319708,0.00031162,2]
[326987419,1715686235972,-206.29485762,0.00031719,2]
[326987421,1715686235982,-2875.0,0.00032,2]
[326987423,1715686235991,-277.6763333,0.00032992,2]
[326987425,1715686236002,-560.35319708,0.00033031,2]
[326987427,1715686236012,-162.328713,0.0003399,2]
[326987429,1715686236023,-154.86062544,0.00034701,7]
[326987431,1715686236032,-206.29485762,0.000349,2]
[326987433,1715686236041,-560.35319708,0.000349,2]
[326987434,1715686236050,-3037.67,0.0003497,3]
[326987436,1715686236060,-2531.39,0.0003497,3]
[326987438,1715686236070,-1916.54890626,0.0003497,35]
[326987502,1715686238126,-154.86062544,0.00020911,2]
[326987504,1715686238135,-2410.45109374,0.0003497,35]
[326987506,1715686238145,-239.0,0.0003497,35]
[326987508,1715686238156,-150.5,0.0003497,35]
[326987510,1715686238165,-1796.54049628,0.0003497,35]
[326987512,1715686238178,-464.8804376,0.0003497,35]
[326987696,1715686240637,-503.01188397,0.00020913,2]
[326987697,1715686240650,-2311.91229578,0.00020913,2]
[326987804,1715686350579,1042.60704695,9.999e-05,2]
[326987805,1715686403873,8073.80728141,0.00019912,2]
[326987840,1715686915042,600.9654906,9.999e-05,2]
[326987844,1715687001451,513.01214525,9.999e-05,2]
[326987847,1715687099636,465.74917975,9.999e-05,2]
[326987848,1715687129842,154.82968734,9.999e-05,2]
[326987849,1715687138084,154.82968734,9.999e-05,2]
[326987850,1715687210006,292.53005039,9.999e-05,2]
[326987851,1715687271591,154.82968734,9.999e-05,2]
[326987853,1715687303876,195.07698332,0.0001,2]
[326987877,1715687431969,-843.315,0.00018962,2]
[326987881,1715687432001,-141.35322506,0.00018962,2]
[326987883,1715687432011,-154.82968734,0.00018963,2]
[326987885,1715687432021,-500.8045755,0.00018963,2]
[326987887,1715687432031,-24900.0,0.00018977,2]
[326987889,1715687432041,-187.28401313,0.00019899,2]
[326987890,1715687432051,-374.46172271,0.00019998,2]
[326987891,1715687432061,-345.15231646,0.00019998,2]
[326987892,1715687432071,-442.86248838,0.00019998,2]
[326987893,1715687432082,-151.0,0.00019999,2]
[326987894,1715687432091,-151.0,0.00019999,2]
[326987895,1715687432101,-151.0,0.00019999,2]
[326987896,1715687432111,-151.0,0.00019999,2]
[326987897,1715687432120,-151.0,0.00019999,2]
[326987898,1715687432130,-151.0,0.00019999,2]
[326987899,1715687432140,-151.0,0.00019999,2]
[326987900,1715687432149,-406.72273,0.00019999,2]
[326987901,1715687432158,-406.72273,0.00019999,2]
[326987902,1715687432169,-151.0,0.00019999,2]
[326987903,1715687432179,-519.044299,0.00019999,2]
[326987904,1715687432188,-424.08509,0.00019999,2]
[326987905,1715687432197,-519.044299,0.00019999,2]
[326987906,1715687432207,-424.08509,0.00019999,2]
[326987907,1715687432216,-151.0,0.00019999,2]
[326987908,1715687432225,-151.0,0.00019999,2]
[326987909,1715687432235,-151.0,0.00019999,2]
[326987910,1715687432245,-993.819496,0.00019999,2]
[326987911,1715687432257,-993.819496,0.00019999,2]
[326987912,1715687432267,-151.0,0.00019999,2]
[326987913,1715687432277,-151.0,0.00019999,2]
[326987914,1715687432287,-500.0,0.00019999,2]
[326987915,1715687432298,-500.0,0.00019999,2]
[326987916,1715687432308,-500.0,0.00019999,2]
[326987917,1715687432317,-500.0,0.00019999,2]
[326987918,1715687432326,-500.0,0.00019999,2]
[326987919,1715687432339,-500.0,0.00019999,2]
[326987920,1715687432350,-500.0,0.00019999,2]
[326987921,1715687432359,-582.99514699,0.00019999,2]
[326987922,1715687432369,-429.59903757,0.00019999,2]
[326987923,1715687432379,-500.0,0.00019999,2]
[326987924,1715687432388,-500.0,0.00019999,2]
[326987925,1715687432398,-500.0,0.00019999,2]
[326987926,1715687432407,-500.0,0.00019999,2]
[326987927,1715687432419,-500.0,0.00019999,2]
[326987928,1715687432428,-539.55703242,0.00019999,2]
[326987929,1715687432439,-500.0,0.00019999,2]
[326987930,1715687432449,-500.0,0.00019999,2]
[326987931,1715687432459,-500.0,0.00019999,2]
[326987932,1715687432468,-500.0,0.00019999,2]
[326987933,1715687432478,-500.0,0.00019999,2]
[326987934,1715687432487,-500.0,0.00019999,2]
[326987935,1715687432498,-500.0,0.00019999,2]
[326987936,1715687432507,-499.99999999,0.00019999,2]
[326987937,1715687432516,-188.63086759,0.00019999,2]
[326987938,1715687432526,-67982.2825381,0.0002,2]
[326987939,1715687432535,-151.0,0.0002,2]
[326987940,1715687432544,-151.0,0.0002,2]
[326987941,1715687432554,-151.0,0.0002,2]
[326987942,1715687432564,-151.0,0.0002,2]
[326987943,1715687432574,-151.0,0.0002,2]
[326987944,1715687432584,-151.0,0.0002,2]
[326987945,1715687432593,-151.0,0.0002,2]
[326987946,1715687432603,-151.0,0.0002,2]
[326987947,1715687432613,-151.0,0.0002,2]
[326987948,1715687432623,-151.0,0.0002,2]
[326987949,1715687432632,-286.187827,0.0002,2]
[326987950,1715687432642,-286.187827,0.0002,2]
[326987951,1715687432651,-151.0,0.0002,2]
[326987952,1715687432660,-151.0,0.0002,2]
[326987953,1715687432671,-151.0,0.0002,2]
[326987954,1715687432681,-151.0,0.0002,2]
[326987955,1715687432780,-406.72273,0.0002,2]
[326987956,1715687432790,-406.72273,0.0002,2]
[326987957,1715687432799,-151.0,0.0002,2]
[326987958,1715687432808,-519.044299,0.0002,2]
[326987959,1715687432818,-424.08509,0.0002,2]
[326987960,1715687432827,-519.044299,0.0002,2]
[326987961,1715687432836,-424.08509,0.0002,2]
[326987962,1715687432846,-151.0,0.0002,2]
[326987963,1715687432856,-151.0,0.0002,2]
[326987964,1715687432866,-151.0,0.0002,2]
[326987965,1715687432875,-993.819496,0.0002,2]
[326987966,1715687432885,-993.819496,0.0002,2]
[326987967,1715687432895,-151.0,0.0002,2]
[326987968,1715687432905,-151.0,0.0002,2]
[326987969,1715687432915,-151.0,0.00020908,2]
[326987970,1715687432925,-178.0,0.00020908,2]
[326987971,1715687432935,-286.187827,0.00020908,2]
[326987972,1715687432944,-286.187827,0.00020908,2]
[326987973,1715687432955,-151.0,0.00020908,2]
[326987974,1715687432964,-151.0,0.00020908,2]
[326987975,1715687432974,-151.0,0.00020908,2]
[326987976,1715687432984,-151.0,0.00020908,2]
[326987977,1715687432994,-406.72273,0.00020908,2]
[326987978,1715687433005,-406.72273,0.00020908,2]
[326987979,1715687433014,-519.044299,0.00020908,2]
[326987980,1715687433024,-424.08509,0.00020908,2]
[326987981,1715687433034,-519.044299,0.00020908,2]
[326987982,1715687433044,-424.08509,0.00020908,2]
[326987983,1715687433054,-151.0,0.00020908,2]
[326987984,1715687433063,-151.0,0.00020908,2]
[326987985,1715687433073,-151.0,0.00020908,2]
[326987986,1715687433083,-993.819496,0.00020908,2]
[326987987,1715687433092,-993.819496,0.00020908,2]
[326987988,1715687433102,-151.0,0.00020908,2]
[326987989,1715687433112,-151.0,0.00020908,2]
[326987990,1715687433122,-151.0,0.00020909,2]
[326987991,1715687433132,-151.0,0.0002091,2]
[326987992,1715687433142,-151.0,0.00020911,2]
[326987993,1715687433153,-151.0,0.00020911,2]
[326987994,1715687433163,-286.187827,0.00020911,2]
[326987995,1715687433174,-286.187827,0.00020911,2]
[326987996,1715687433183,-151.0,0.00020912,2]
[326987997,1715687433193,-151.0,0.00020912,2]
[326987998,1715687433202,-151.0,0.00020912,2]
[326987999,1715687433212,-151.0,0.00020912,2]
[326988000,1715687433221,-151.0,0.00020912,2]
[326988001,1715687433232,-6573.78384389,0.00020913,2]
[326988002,1715687433242,-286.187827,0.00020913,2]
[326988003,1715687433256,-286.187827,0.00020913,2]
[326988004,1715687433266,-151.0,0.00020913,2]
[326988005,1715687433275,-151.0,0.00020913,2]
[326988006,1715687433285,-151.0,0.00020913,2]
[326988007,1715687433295,-406.72273,0.00020913,2]
[326988008,1715687433305,-406.72273,0.00020913,2]
[326988009,1715687433315,-519.044299,0.00020913,2]
[326988010,1715687433325,-424.08509,0.00020913,2]
[326988011,1715687433336,-519.044299,0.00020913,2]
[326988012,1715687433346,-424.08509,0.00020913,2]
[326988013,1715687433356,-151.0,0.00020913,2]
[326988014,1715687433366,-151.0,0.00020913,2]
[326988015,1715687433376,-162.317664,0.00020913,2]
[326988016,1715687433385,-993.819496,0.00020913,2]
[326988017,1715687433396,-993.819496,0.00020913,2]
[326988018,1715687433406,-151.0,0.00020913,2]
[326988019,1715687433417,-203.523527,0.00020913,2]
[326988020,1715687433428,-151.0,0.00021918,2]
[326988021,1715687433438,-151.0,0.00021918,2]
[326988022,1715687433447,-151.0,0.00021918,2]
[326988023,1715687433457,-708.26264339,0.00022,2]
[326988024,1715687433467,-187.28401308,0.00022042,2]
[326988025,1715687433476,-187.28401308,0.00024185,2]
[326988026,1715687433486,-154.86062544,0.000245,2]
[326988027,1715687433496,-662.557183,0.00024658,2]
[326988028,1715687433505,-662.557183,0.00024658,2]
[326988029,1715687433515,-662.557183,0.00024658,2]
[326988030,1715687433524,-662.557183,0.00024658,2]
[326988031,1715687433534,-662.557183,0.00024658,2]
[326988032,1715687433544,-662.557183,0.00024658,2]
[326988033,1715687433553,-662.557183,0.00024658,2]
[326988034,1715687433563,-662.557183,0.00024658,2]
[326988035,1715687433573,-151.0,0.00024658,2]
[326988036,1715687433582,-151.0,0.00024658,2]
[326988037,1715687433592,-151.0,0.00024658,2]
[326988038,1715687433602,-151.0,0.00024658,2]
[326988039,1715687433611,-151.0,0.00024658,2]
[326988040,1715687433621,-406.72273,0.00024658,2]
[326988041,1715687433631,-406.72273,0.00024658,2]
[326988042,1715687433640,-662.557183,0.00024658,2]
[326988043,1715687433650,-662.557183,0.00024658,2]
[326988044,1715687433659,-519.044299,0.00024658,2]
[326988045,1715687433670,-424.08509,0.00024658,2]
[326988046,1715687433679,-519.044299,0.00024658,2]
[326988047,1715687433689,-424.08509,0.00024658,2]
[326988048,1715687433698,-151.0,0.00024658,2]
[326988049,1715687433708,-151.0,0.00024658,2]
[326988050,1715687433717,-993.819496,0.00024658,2]
[326988051,1715687433727,-993.819496,0.00024658,2]
[326988052,1715687433736,-151.0,0.00024658,2]
[326988053,1715687433745,-151.0,0.00024999,2]
[326988054,1715687433754,-151.0,0.00024999,2]
[326988055,1715687433764,-151.0,0.00024999,2]
[326988056,1715687433773,-151.0,0.00024999,2]
[326988057,1715687433783,-175.919645,0.00024999,2]
[326988058,1715687433793,-20772.96756625,0.00025,2]
[326988059,1715687433807,-5764.15502566,0.00025,2]
[326988060,1715687433816,-151.0,0.00025,2]
[326988061,1715687433826,-151.0,0.00025,2]
[326988062,1715687433836,-286.187827,0.00025,2]
[326988063,1715687433846,-286.187827,0.00025,2]
[326988064,1715687433855,-151.0,0.00025,2]
[326988065,1715687433865,-188.672524,0.00025,2]
[326988066,1715687433875,-151.0,0.00025,2]
[326988067,1715687433884,-74.05128334,0.00025,2]
[326988068,1715687433896,-332.67144666,0.00025,2]
[326988069,1715687433906,-406.72273,0.00025,2]
[326988070,1715687433916,-662.557183,0.00025,2]
[326988071,1715687433926,-662.557183,0.00025,2]
[326988072,1715687433936,-519.044299,0.00025,2]
[326988073,1715687433946,-424.08509,0.00025,2]
[326988074,1715687433956,-519.044299,0.00025,2]
[326988075,1715687433965,-424.08509,0.00025,2]
[326988076,1715687433975,-151.0,0.00025,2]
[326988077,1715687433984,-151.0,0.00025,2]
[326988078,1715687433994,-993.819496,0.00025,2]
[326988079,1715687434004,-993.819496,0.00025,2]
[326988080,1715687434013,-151.0,0.00025,2]
[326988081,1715687434023,-187.28401308,0.00026328,2]
[326988082,1715687434032,-162.04556,0.00027123,2]
[326988083,1715687434115,-160.832682,0.00027123,2]
[326988084,1715687434125,-150.0,0.000275,2]
[326988085,1715687434135,-187.28401308,0.00028471,2]
[326988086,1715687434145,-5278.68866236,0.0003,7]
[326988131,1715687438012,-334.39650053,0.00019998,2]
[326988139,1715687438073,-165.60349947,0.00019998,2]
[326988141,1715687438083,-500.0,0.00019998,2]
[326988143,1715687438094,-500.0,0.00019998,2]
[326988145,1715687438104,-500.0,0.00019998,2]
[326988147,1715687438114,-500.0,0.00019998,2]
[326988161,1715687438244,-500.0,0.00019998,2]
[326988163,1715687438257,-500.0,0.00019998,2]
[326988165,1715687438267,-500.0,0.00019998,2]
[326988167,1715687438276,-500.0,0.00019998,2]
[326988169,1715687438286,-500.0,0.00019998,2]
[326988171,1715687438297,-500.0,0.00019998,2]
[326988173,1715687438306,-500.0,0.00019998,2]
[326988175,1715687438315,-500.0,0.00019998,2]
[326988177,1715687438325,-500.0,0.00019998,2]
[326988179,1715687438336,-500.0,0.00019998,2]
[326988181,1715687438345,-500.0,0.00019998,2]
[326988183,1715687438355,-203.90631702,0.00019998,2]
[326988370,1715687440137,-296.09368298,0.00019998,2]
[326988372,1715687440146,-33.13753897,0.00019998,2]
[326988378,1715687440201,-378.79359255,0.00019998,2]
[326988381,1715687440213,-88.06886848,0.00019998,2]
[326988383,1715687440222,-173.47713152,0.00019998,2]
[326988603,1715687443321,-326.52286848,0.00019998,2]
[326988604,1715687443331,-154.47713152,0.00019998,2]
[326988605,1715687443343,-345.52286848,0.00019998,2]
[326988606,1715687443439,-500.0,0.00019998,2]
[326988607,1715687443449,-500.0,0.00019998,2]
[326988608,1715687443458,-500.0,0.00019998,2]
[326988609,1715687443468,-500.0,0.00019998,2]
[326988610,1715687443477,-500.0,0.00019998,2]
[326988611,1715687443487,-500.0,0.00019998,2]
[326988612,1715687443496,-500.0,0.00019998,2]
[326988613,1715687443505,-500.0,0.00019998,2]
[326988614,1715687443515,-168.44396972,0.00019998,2]
[326988615,1715687443527,-331.55603028,0.00019998,2]
[326988616,1715687443536,-500.0,0.00019998,2]
[326988617,1715687443545,-500.0,0.00019998,2]
[326988618,1715687443554,-205.5,0.00026414,3]
[326988619,1715687443563,-38545.5686884,0.0003,7]
[326988620,1715687443572,-151.0,0.0003,2]
[326988621,1715687443581,-286.187827,0.0003,2]
[326988622,1715687443590,-286.187827,0.0003,2]
[326988623,1715687443599,-1000.0,0.0003,120]
[326988624,1715687443608,-151.0,0.0003,2]
[326988625,1715687443617,-176.090458,0.0003,2]
[326988626,1715687443627,-406.72273,0.0003,2]
[326988627,1715687443636,-406.72273,0.0003,2]
[326988628,1715687443645,-58.96966977,0.0003,2]
[326988664,1715688167185,260.91918383,9.999e-05,2]
[326988665,1715688208776,513.01214525,9.999e-05,2]
[326988723,1715688632263,-513.01214525,0.00018251,2]
[326988725,1715688632294,-260.91918383,0.00018252,2]
[326988727,1715688632304,-2595.37774588,0.00018253,2]
[326988729,1715688632314,-3148.7660825,0.00018257,2]
[326988731,1715688632324,-154.82968734,0.0001899,2]
[326988733,1715688632334,-164.85509641,0.00019882,2]
[326988735,1715688632343,-68704.90421331,0.00019981,2]
[326989158,1715688638322,-467.65814808,0.0001998,2]
[326989895,1715688646149,-187.28401308,0.00019881,2]
[326989897,1715688646159,-513.01214525,0.00019979,2]
[326989899,1715688646168,-32.34185192,0.0001998,2]
[326989901,1715688646178,-222.97125671,0.0001998,2]
[326989903,1715688646187,-500.0,0.0001998,2]
[326989905,1715688646197,-500.0,0.0001998,2]
[326989907,1715688646206,-500.0,0.0001998,2]
[326989909,1715688646215,-500.0,0.0001998,2]
[326989911,1715688646224,-500.0,0.0001998,2]
[326989913,1715688646235,-500.0,0.0001998,2]
[326989915,1715688646243,-500.0,0.0001998,2]
[326989917,1715688646253,-500.0,0.0001998,2]
[326989919,1715688646262,-500.0,0.0001998,2]
[326989921,1715688646272,-500.0,0.0001998,2]
[326989923,1715688646281,-500.0,0.0001998,2]
[326989925,1715688646290,-500.0,0.0001998,2]
[326989927,1715688646300,-500.0,0.0001998,2]
[326989929,1715688646309,-500.0,0.0001998,2]
[326989931,1715688646319,-500.0,0.0001998,2]
[326989933,1715688646328,-500.0,0.0001998,2]